[Event "*** SCC Grand Prix: Titled Tuesday Blitz"]
[Site "Chess.com"]
[Date "2020.06.02"]
[Round "9"]
[White "RaunakSadhwani2005"]
[Black "DenisQ"]
[Result "1-0"]
[WhiteElo "2893"]
[BlackElo "2608"]
[TimeControl "180+1"]
[EndTime "11:44:10 PDT"]
[Termination "RaunakSadhwani2005 won by resignation"]

1. e4 {[%clk 0:03:00.9]} 1... c6 {[%clk 0:02:59.6]} 2. Nf3 {[%clk 0:02:55.7]}
2... d5 {[%clk 0:03:00.5]} 3. d3 {[%clk 0:02:56.3]} 3... dxe4 {[%clk 0:02:59.9]}
4. dxe4 {[%clk 0:02:57.2]} 4... Qxd1+ {[%clk 0:02:59.9]} 5. Kxd1 {[%clk
0:02:58.1]} 5... Bg4 {[%clk 0:02:59.5]} 6. Be2 {[%clk 0:02:55]} 6... Nd7 {[%clk
0:02:58.8]} 7. Ne1 {[%clk 0:02:47.7]} 7... Bxe2+ {[%clk 0:02:57.7]} 8. Kxe2
{[%clk 0:02:48.6]} 8... e5 {[%clk 0:02:56.5]} 9. a4 {[%clk 0:02:46.4]} 9... Bc5
{[%clk 0:02:52.7]} 10. Nd3 {[%clk 0:02:46.2]} 10... a5 {[%clk 0:02:43.2]} 11.
Nd2 {[%clk 0:02:43.3]} 11... f6 {[%clk 0:02:41.8]} 12. Nc4 {[%clk 0:02:43]}
12... Be7 {[%clk 0:02:31.1]} 13. Bd2 {[%clk 0:02:39.9]} 13... b6 {[%clk
0:02:28.7]} 14. Be3 {[%clk 0:02:38.9]} 14... Bd8 {[%clk 0:02:04.5]} 15. c3
{[%clk 0:02:32.3]} 15... Bc7 {[%clk 0:02:03.7]} 16. b4 {[%clk 0:02:28.1]} 16...
axb4 {[%clk 0:02:02.2]} 17. cxb4 {[%clk 0:02:28.2]} 17... Ne7 {[%clk 0:01:59.5]}
18. b5 {[%clk 0:02:27.5]} 18... Kf7 {[%clk 0:01:39.2]} 19. Nb4 {[%clk
0:02:24.7]} 19... c5 {[%clk 0:01:12.6]} 20. Na6 {[%clk 0:02:22.7]} 20... Rhc8
{[%clk 0:01:07.6]} 21. Rhd1 {[%clk 0:02:20]} 21... Ke8 {[%clk 0:01:01.2]} 22.
Nxc7+ {[%clk 0:02:13.1]} 22... Rxc7 {[%clk 0:00:59.7]} 23. Rxd7 {[%clk
0:02:06.6]} 23... Rxd7 {[%clk 0:00:53.6]} 24. Nxb6 {[%clk 0:02:06.7]} 1-0

[Event "*** SCC Grand Prix: Titled Tuesday Blitz"]
[Site "Chess.com"]
[Date "2020.06.02"]
[Round "9"]
[White "latixxa"]
[Black "NemtsevIgor"]
[Result "1-0"]
[WhiteElo "2167"]
[BlackElo "2279"]
[TimeControl "180+1"]
[EndTime "11:44:20 PDT"]
[Termination "latixxa won by resignation"]

1. d4 {[%clk 0:03:00.9]} 1... c6 {[%clk 0:02:58]} 2. Nf3 {[%clk 0:02:59.1]} 2...
h6 {[%clk 0:02:57.5]} 3. Bf4 {[%clk 0:02:56.9]} 3... d6 {[%clk 0:02:53.5]} 4. e4
{[%clk 0:02:52.5]} 4... g5 {[%clk 0:02:52.9]} 5. Be3 {[%clk 0:02:51.6]} 5... Bg7
{[%clk 0:02:52.9]} 6. Nc3 {[%clk 0:02:50.1]} 6... Nd7 {[%clk 0:02:52.1]} 7. h4
{[%clk 0:02:49]} 7... g4 {[%clk 0:02:51.9]} 8. Nh2 {[%clk 0:02:48.8]} 8... g3
{[%clk 0:02:51.6]} 9. fxg3 {[%clk 0:02:47.7]} 9... h5 {[%clk 0:02:51]} 10. g4
{[%clk 0:02:36.6]} 10... hxg4 {[%clk 0:02:46.5]} 11. Qxg4 {[%clk 0:02:37.5]}
11... Kf8 {[%clk 0:02:42.3]} 12. Qg3 {[%clk 0:02:30]} 12... b5 {[%clk
0:02:31.6]} 13. Bd3 {[%clk 0:02:23]} 13... Ndf6 {[%clk 0:02:08.6]} 14. O-O-O
{[%clk 0:02:19.9]} 14... Qa5 {[%clk 0:02:03.5]} 15. Kb1 {[%clk 0:02:18.5]} 15...
b4 {[%clk 0:02:03]} 16. Ne2 {[%clk 0:02:17.8]} 16... Rb8 {[%clk 0:01:56.4]} 17.
Rhf1 {[%clk 0:02:16.1]} 17... Be6 {[%clk 0:01:47.9]} 18. b3 {[%clk 0:02:05]}
18... c5 {[%clk 0:01:30.6]} 19. Nf4 {[%clk 0:01:52.5]} 19... cxd4 {[%clk
0:01:18.5]} 20. Bxd4 {[%clk 0:01:51.3]} 20... Nh5 {[%clk 0:01:04]} 21. Nxe6+
{[%clk 0:01:50.1]} 21... Ke8 {[%clk 0:01:01.3]} 22. Nxg7+ {[%clk 0:01:51]} 22...
Nxg7 {[%clk 0:00:53.4]} 23. Qxg7 {[%clk 0:01:51.9]} 1-0

[Event "*** SCC Grand Prix: Titled Tuesday Blitz"]
[Site "Chess.com"]
[Date "2020.06.02"]
[Round "9"]
[White "GothamChess"]
[Black "Aleksandar-Topalov"]
[Result "0-1"]
[WhiteElo "2599"]
[BlackElo "2460"]
[TimeControl "180+1"]
[EndTime "11:44:29 PDT"]
[Termination "Aleksandar-Topalov won on time"]

1. e4 {[%clk 0:03:00.9]} 1... e6 {[%clk 0:03:00.1]} 2. b3 {[%clk 0:02:57.6]}
2... d5 {[%clk 0:02:59.9]} 3. Bb2 {[%clk 0:02:57.7]} 3... Nf6 {[%clk 0:03:00.6]}
4. e5 {[%clk 0:02:57.3]} 4... Ng8 {[%clk 0:03:01.3]} 5. h4 {[%clk 0:02:53.9]}
5... h5 {[%clk 0:02:59.7]} 6. Nf3 {[%clk 0:02:51.6]} 6... Ne7 {[%clk 0:02:59.2]}
7. Ng5 {[%clk 0:02:47.4]} 7... b6 {[%clk 0:02:58.5]} 8. Bb5+ {[%clk 0:02:40.1]}
8... c6 {[%clk 0:02:58.2]} 9. Be2 {[%clk 0:02:38.6]} 9... Ba6 {[%clk 0:02:58.1]}
10. Bxh5 {[%clk 0:02:38.1]} 10... g6 {[%clk 0:02:54.2]} 11. Qf3 {[%clk
0:02:20.4]} 11... Nf5 {[%clk 0:02:51.4]} 12. Nxe6 {[%clk 0:02:20.4]} 12... Nxh4
{[%clk 0:02:27.8]} 13. Qg3 {[%clk 0:00:29]} 13... Rxh5 {[%clk 0:02:15.8]} 14. d3
{[%clk 0:00:02.9]} 14... fxe6 {[%clk 0:02:06.3]} 0-1

[Event "*** SCC Grand Prix: Titled Tuesday Blitz"]
[Site "Chess.com"]
[Date "2020.06.02"]
[Round "9"]
[White "sopo-tereladze"]
[Black "talaicito"]
[Result "1-0"]
[WhiteElo "2339"]
[BlackElo "2128"]
[TimeControl "180+1"]
[EndTime "11:44:31 PDT"]
[Termination "sopo-tereladze won by resignation"]

1. e4 {[%clk 0:03:00.9]} 1... e5 {[%clk 0:02:59.6]} 2. Nf3 {[%clk 0:03:00.6]}
2... Nc6 {[%clk 0:03:00.1]} 3. Bc4 {[%clk 0:03:00.9]} 3... Nf6 {[%clk
0:02:58.4]} 4. d3 {[%clk 0:02:59.9]} 4... Bc5 {[%clk 0:02:54.3]} 5. O-O {[%clk
0:02:58.5]} 5... h6 {[%clk 0:02:53.9]} 6. Be3 {[%clk 0:02:57.7]} 6... d6 {[%clk
0:02:52.2]} 7. h3 {[%clk 0:02:53.9]} 7... O-O {[%clk 0:02:51.1]} 8. Nbd2 {[%clk
0:02:46.7]} 8... Bb6 {[%clk 0:02:46.6]} 9. c3 {[%clk 0:02:43.4]} 9... Be6 {[%clk
0:02:45.1]} 10. Bb3 {[%clk 0:02:40.4]} 10... Bxb3 {[%clk 0:02:37.7]} 11. Qxb3
{[%clk 0:02:41.3]} 11... d5 {[%clk 0:02:36.4]} 12. Bxb6 {[%clk 0:02:37.8]} 12...
axb6 {[%clk 0:02:32.7]} 13. Rfe1 {[%clk 0:02:37.3]} 13... dxe4 {[%clk 0:02:17]}
14. Nxe4 {[%clk 0:02:38.2]} 14... Nxe4 {[%clk 0:02:10.8]} 15. dxe4 {[%clk
0:02:39.1]} 15... Qf6 {[%clk 0:02:01.4]} 16. Rad1 {[%clk 0:02:36.2]} 16... Rfd8
{[%clk 0:02:01.5]} 17. Rxd8+ {[%clk 0:02:30.9]} 17... Rxd8 {[%clk 0:02:00.7]}
18. Rd1 {[%clk 0:02:31.8]} 18... Qe7 {[%clk 0:01:44.4]} 19. Rd5 {[%clk
0:02:29.6]} 19... Rxd5 {[%clk 0:01:36.2]} 20. exd5 {[%clk 0:02:30.5]} 20... Nd8
{[%clk 0:01:28.1]} 21. c4 {[%clk 0:02:27.1]} 21... Kh8 {[%clk 0:01:15]} 22. Qe3
{[%clk 0:02:24.6]} 22... f6 {[%clk 0:01:13.2]} 23. Nh4 {[%clk 0:02:20.6]} 23...
Kg8 {[%clk 0:01:06.7]} 24. Nf5 {[%clk 0:02:14.5]} 24... Qd7 {[%clk 0:01:06.4]}
25. Qe4 {[%clk 0:02:07.4]} 25... Nf7 {[%clk 0:01:04.9]} 26. Qg4 {[%clk 0:02:07]}
26... Ng5 {[%clk 0:00:36]} 27. Nxh6+ {[%clk 0:02:04.9]} 1-0

[Event "*** SCC Grand Prix: Titled Tuesday Blitz"]
[Site "Chess.com"]
[Date "2020.06.02"]
[Round "9"]
[White "AlexOstrovskiy"]
[Black "Terao90"]
[Result "1-0"]
[WhiteElo "2534"]
[BlackElo "2315"]
[TimeControl "180+1"]
[EndTime "11:44:51 PDT"]
[Termination "AlexOstrovskiy won by resignation"]

1. d4 {[%clk 0:03:00.9]} 1... Nf6 {[%clk 0:02:59.7]} 2. Bf4 {[%clk 0:03:00.3]}
2... e6 {[%clk 0:02:59.7]} 3. e3 {[%clk 0:02:59.9]} 3... b6 {[%clk 0:02:59.9]}
4. Nd2 {[%clk 0:02:58.8]} 4... Bb7 {[%clk 0:03:00.1]} 5. Ngf3 {[%clk 0:02:58.3]}
5... Be7 {[%clk 0:03:00]} 6. Bd3 {[%clk 0:02:56.8]} 6... O-O {[%clk 0:03:00.5]}
7. c3 {[%clk 0:02:57.1]} 7... c5 {[%clk 0:03:00.6]} 8. Nc4 {[%clk 0:02:52.7]}
8... cxd4 {[%clk 0:02:57.3]} 9. exd4 {[%clk 0:02:49.8]} 9... d6 {[%clk
0:02:57.5]} 10. O-O {[%clk 0:02:44]} 10... Qc7 {[%clk 0:02:42.7]} 11. h3 {[%clk
0:02:39.2]} 11... Nbd7 {[%clk 0:02:38.5]} 12. Bh2 {[%clk 0:02:39.1]} 12... b5
{[%clk 0:02:38.3]} 13. Ncd2 {[%clk 0:02:27.6]} 13... a6 {[%clk 0:02:38.7]} 14.
a4 {[%clk 0:02:27.4]} 14... bxa4 {[%clk 0:02:38.3]} 15. Qxa4 {[%clk 0:02:24.8]}
15... Rfc8 {[%clk 0:02:26.5]} 16. Qa5 {[%clk 0:02:12.5]} 16... Nb6 {[%clk
0:02:23.4]} 17. c4 {[%clk 0:02:05.6]} 17... Bxf3 {[%clk 0:02:04.6]} 18. gxf3
{[%clk 0:01:51.6]} 18... Qb7 {[%clk 0:02:00.9]} 19. b3 {[%clk 0:01:40.4]} 19...
Bd8 {[%clk 0:01:45.1]} 20. Qa3 {[%clk 0:01:31.8]} 20... d5 {[%clk 0:01:02.8]}
21. c5 {[%clk 0:01:31.4]} 21... Nbd7 {[%clk 0:00:54]} 22. b4 {[%clk 0:01:27.8]}
22... Nb8 {[%clk 0:00:49.8]} 23. b5 {[%clk 0:01:23.6]} 1-0

[Event "*** SCC Grand Prix: Titled Tuesday Blitz"]
[Site "Chess.com"]
[Date "2020.06.02"]
[Round "9"]
[White "levallem"]
[Black "chessbia"]
[Result "0-1"]
[WhiteElo "2189"]
[BlackElo "2120"]
[TimeControl "180+1"]
[EndTime "11:44:56 PDT"]
[Termination "chessbia won by resignation"]

1. d4 {[%clk 0:03:00.9]} 1... d5 {[%clk 0:02:59.9]} 2. c4 {[%clk 0:02:58]} 2...
c6 {[%clk 0:03:00.8]} 3. cxd5 {[%clk 0:02:57.9]} 3... cxd5 {[%clk 0:03:00.7]} 4.
Nc3 {[%clk 0:02:58.8]} 4... Nf6 {[%clk 0:03:01.3]} 5. Nf3 {[%clk 0:02:59]} 5...
a6 {[%clk 0:03:01.8]} 6. Bf4 {[%clk 0:02:56]} 6... Nc6 {[%clk 0:03:00.9]} 7. e3
{[%clk 0:02:56.3]} 7... Bg4 {[%clk 0:02:58.7]} 8. Rc1 {[%clk 0:02:54.6]} 8... e6
{[%clk 0:02:53.9]} 9. Bd3 {[%clk 0:02:54.1]} 9... Bd6 {[%clk 0:02:52.6]} 10. Bg3
{[%clk 0:02:49.1]} 10... O-O {[%clk 0:02:51.1]} 11. O-O {[%clk 0:02:47.6]} 11...
Rc8 {[%clk 0:02:49.7]} 12. a3 {[%clk 0:02:43.4]} 12... Na5 {[%clk 0:02:45.3]}
13. Rc2 {[%clk 0:02:35.4]} 13... b5 {[%clk 0:02:39.6]} 14. Ne5 {[%clk 0:02:30]}
14... Bxd1 {[%clk 0:02:38.3]} 15. Rxd1 {[%clk 0:02:28.1]} 15... Bxe5 {[%clk
0:02:35.4]} 16. Bxe5 {[%clk 0:02:26.3]} 16... Nc4 {[%clk 0:02:33.4]} 17. Bxc4
{[%clk 0:02:21.9]} 17... dxc4 {[%clk 0:02:29.7]} 18. f3 {[%clk 0:02:20.4]} 18...
Nd5 {[%clk 0:02:28.6]} 19. Nxd5 {[%clk 0:02:11.8]} 19... exd5 {[%clk 0:02:28.2]}
20. Bf4 {[%clk 0:02:02.4]} 20... Re8 {[%clk 0:02:26.6]} 21. Re2 {[%clk
0:02:01.7]} 21... a5 {[%clk 0:02:26]} 22. Kf2 {[%clk 0:01:58]} 22... b4 {[%clk
0:02:26.1]} 23. axb4 {[%clk 0:01:56.2]} 23... axb4 {[%clk 0:02:27]} 24. Rc2
{[%clk 0:01:49.1]} 24... Qa5 {[%clk 0:02:19.8]} 25. Rdc1 {[%clk 0:01:47.5]}
25... h6 {[%clk 0:02:19.9]} 26. h4 {[%clk 0:01:32.2]} 26... Re6 {[%clk
0:02:16.1]} 27. h5 {[%clk 0:01:30.9]} 27... Qa2 {[%clk 0:02:11.7]} 28. g4 {[%clk
0:01:27.8]} 28... Qb3 {[%clk 0:02:10.5]} 29. Re2 {[%clk 0:01:27.8]} 29... Ra6
{[%clk 0:02:05]} 30. g5 {[%clk 0:01:24.4]} 30... hxg5 {[%clk 0:02:02.5]} 31.
Bxg5 {[%clk 0:01:25.3]} 31... Ra2 {[%clk 0:02:00.3]} 32. h6 {[%clk 0:01:14.4]}
32... gxh6 {[%clk 0:01:59.6]} 33. Bxh6 {[%clk 0:00:59.6]} 33... Rxb2 {[%clk
0:01:59.6]} 34. Rg1+ {[%clk 0:00:59.4]} 34... Kh7 {[%clk 0:01:59.2]} 35. Bf4
{[%clk 0:00:51.7]} 35... Rxe2+ {[%clk 0:01:57.2]} 36. Kxe2 {[%clk 0:00:52.6]}
36... Qc2+ {[%clk 0:01:55.8]} 37. Kf1 {[%clk 0:00:51.5]} 37... Ra8 {[%clk
0:01:50.5]} 38. Rh1+ {[%clk 0:00:50.6]} 0-1

[Event "*** SCC Grand Prix: Titled Tuesday Blitz"]
[Site "Chess.com"]
[Date "2020.06.02"]
[Round "9"]
[White "gahryman"]
[Black "Papa12341234"]
[Result "1-0"]
[WhiteElo "2699"]
[BlackElo "2556"]
[TimeControl "180+1"]
[EndTime "11:44:57 PDT"]
[Termination "gahryman won by resignation"]

1. e4 {[%clk 0:03:00.9]} 1... c5 {[%clk 0:02:59.3]} 2. Nf3 {[%clk 0:03:00.6]}
2... d6 {[%clk 0:02:58.4]} 3. d4 {[%clk 0:03:00.5]} 3... Nf6 {[%clk 0:02:54.5]}
4. Nc3 {[%clk 0:03:00.2]} 4... cxd4 {[%clk 0:02:52.3]} 5. Nxd4 {[%clk
0:03:01.1]} 5... a6 {[%clk 0:02:53.2]} 6. Bg5 {[%clk 0:02:59.4]} 6... e6 {[%clk
0:02:50.2]} 7. Qe2 {[%clk 0:02:59.3]} 7... h6 {[%clk 0:02:49.3]} 8. Bxf6 {[%clk
0:02:48.2]} 8... Qxf6 {[%clk 0:02:50.2]} 9. O-O-O {[%clk 0:02:48.8]} 9... b5
{[%clk 0:02:47.3]} 10. g3 {[%clk 0:02:42.3]} 10... Bb7 {[%clk 0:02:47.4]} 11.
Bg2 {[%clk 0:02:42.1]} 11... Nd7 {[%clk 0:02:46.6]} 12. e5 {[%clk 0:02:26.8]}
12... dxe5 {[%clk 0:02:36.6]} 13. Bxb7 {[%clk 0:02:24.5]} 13... Rb8 {[%clk
0:02:36.9]} 14. Ne4 {[%clk 0:02:06.4]} 14... Qg6 {[%clk 0:02:37.3]} 15. Bc6
{[%clk 0:02:05.2]} 15... exd4 {[%clk 0:02:36.5]} 16. Rxd4 {[%clk 0:02:04.8]}
16... Rd8 {[%clk 0:02:33.5]} 17. Rhd1 {[%clk 0:02:03.8]} 17... Be7 {[%clk
0:02:17]} 18. Rxd7 {[%clk 0:01:57.5]} 18... Rxd7 {[%clk 0:02:06.2]} 19. Rxd7
{[%clk 0:01:58.4]} 19... O-O {[%clk 0:01:55.4]} 20. Rxe7 {[%clk 0:01:56.8]}
20... f5 {[%clk 0:01:56]} 21. f4 {[%clk 0:01:46.1]} 21... fxe4 {[%clk
0:01:38.1]} 22. Qxe4 {[%clk 0:01:45.7]} 22... Qh5 {[%clk 0:01:37.8]} 23. Qe5
{[%clk 0:01:32.7]} 23... Qxe5 {[%clk 0:01:33.1]} 24. fxe5 {[%clk 0:01:32.6]}
24... Rf2 {[%clk 0:01:30.5]} 25. h4 {[%clk 0:01:25.1]} 25... Rf1+ {[%clk
0:01:18.6]} 26. Kd2 {[%clk 0:01:24.4]} 26... Rg1 {[%clk 0:01:19.5]} 27. Rxe6
{[%clk 0:01:22.7]} 27... Rxg3 {[%clk 0:01:16.8]} 28. Be8 {[%clk 0:01:18.6]}
28... Kh7 {[%clk 0:01:13.9]} 29. h5 {[%clk 0:01:18.1]} 29... Rg2+ {[%clk
0:01:12.7]} 30. Ke3 {[%clk 0:01:17.8]} 30... Rg3+ {[%clk 0:01:13.6]} 31. Kf4
{[%clk 0:01:17.8]} 31... g5+ {[%clk 0:01:12.3]} 32. hxg6+ {[%clk 0:01:17.3]}
32... Kg7 {[%clk 0:01:11.9]} 33. Kxg3 {[%clk 0:01:17.2]} 1-0

[Event "*** SCC Grand Prix: Titled Tuesday Blitz"]
[Site "Chess.com"]
[Date "2020.06.02"]
[Round "9"]
[White "DraG0s3L"]
[Black "GigaQuparadze"]
[Result "0-1"]
[WhiteElo "2510"]
[BlackElo "2813"]
[TimeControl "180+1"]
[EndTime "11:45:01 PDT"]
[Termination "GigaQuparadze won by resignation"]

1. Nf3 {[%clk 0:03:00.9]} 1... c5 {[%clk 0:02:54.2]} 2. b3 {[%clk 0:03:01.8]}
2... d6 {[%clk 0:02:46.4]} 3. Bb2 {[%clk 0:03:02.3]} 3... e5 {[%clk 0:02:42.7]}
4. e3 {[%clk 0:03:02.7]} 4... f5 {[%clk 0:02:40.6]} 5. d4 {[%clk 0:03:02.8]}
5... cxd4 {[%clk 0:02:39.7]} 6. exd4 {[%clk 0:03:02.5]} 6... e4 {[%clk
0:02:40.3]} 7. Nfd2 {[%clk 0:03:03.1]} 7... d5 {[%clk 0:02:39.5]} 8. c4 {[%clk
0:03:02.7]} 8... Nf6 {[%clk 0:02:34.2]} 9. Nc3 {[%clk 0:03:02.7]} 9... Bb4
{[%clk 0:02:28.2]} 10. Qc2 {[%clk 0:02:59.2]} 10... Nbd7 {[%clk 0:02:26.3]} 11.
cxd5 {[%clk 0:02:52.6]} 11... Nb6 {[%clk 0:02:25.4]} 12. Bc4 {[%clk 0:02:49.1]}
12... Nbxd5 {[%clk 0:02:24.5]} 13. Nxd5 {[%clk 0:02:41]} 13... Nxd5 {[%clk
0:02:25.4]} 14. O-O {[%clk 0:02:40]} 14... Be6 {[%clk 0:02:24.2]} 15. Nxe4
{[%clk 0:02:36.5]} 15... fxe4 {[%clk 0:02:18.8]} 16. Qxe4 {[%clk 0:02:36.3]}
16... Qd6 {[%clk 0:02:18.9]} 17. a3 {[%clk 0:02:29.3]} 17... Ba5 {[%clk
0:02:18.2]} 18. b4 {[%clk 0:02:28.9]} 18... Bc7 {[%clk 0:02:18.1]} 19. g3 {[%clk
0:02:26.1]} 19... O-O-O {[%clk 0:02:17.7]} 20. Rac1 {[%clk 0:02:25.2]} 20... Kb8
{[%clk 0:02:16.3]} 21. Rfe1 {[%clk 0:02:22.9]} 21... Bf7 {[%clk 0:02:12.5]} 22.
Qe5 {[%clk 0:02:10.7]} 22... Qxe5 {[%clk 0:02:09.2]} 23. dxe5 {[%clk 0:02:10.7]}
23... Be6 {[%clk 0:02:09.6]} 24. f4 {[%clk 0:02:10.1]} 24... Bb6+ {[%clk
0:02:09.2]} 25. Kg2 {[%clk 0:02:09.6]} 25... Nxf4+ {[%clk 0:02:06.6]} 26. gxf4
{[%clk 0:02:08.6]} 26... Bxc4 {[%clk 0:02:06.8]} 27. Rxc4 {[%clk 0:02:08.4]}
27... Rd2+ {[%clk 0:02:06.8]} 28. Kf3 {[%clk 0:02:07.1]} 28... Rxb2 {[%clk
0:02:06.1]} 29. f5 {[%clk 0:02:05.2]} 29... Rf2+ {[%clk 0:02:05.1]} 30. Kg4
{[%clk 0:02:05.4]} 30... h5+ {[%clk 0:02:03]} 31. Kg5 {[%clk 0:02:04]} 31...
Rg2+ {[%clk 0:02:03]} 32. Kh4 {[%clk 0:01:59.5]} 32... Rxh2+ {[%clk 0:02:02.1]}
33. Kg3 {[%clk 0:01:58.4]} 33... Ra2 {[%clk 0:02:03]} 34. Ree4 {[%clk
0:01:56.1]} 34... h4+ {[%clk 0:02:02.8]} 35. Kh3 {[%clk 0:01:49.4]} 35... Rxa3+
{[%clk 0:02:02.4]} 36. Kg2 {[%clk 0:01:49.4]} 36... h3+ {[%clk 0:02:02.5]} 37.
Kh2 {[%clk 0:01:49.8]} 37... Ra2+ {[%clk 0:02:02.2]} 38. Kh1 {[%clk 0:01:50.3]}
38... Ra1+ {[%clk 0:02:00.7]} 39. Kh2 {[%clk 0:01:49.7]} 39... Bg1+ {[%clk
0:02:00.6]} 40. Kg3 {[%clk 0:01:50.2]} 40... h2 {[%clk 0:02:00.2]} 41. Rh4
{[%clk 0:01:50.8]} 41... h1=Q {[%clk 0:01:58.5]} 42. Rxh1 {[%clk 0:01:50.7]}
42... Rxh1 {[%clk 0:01:58.3]} 43. f6 {[%clk 0:01:51.6]} 43... gxf6 {[%clk
0:01:57.6]} 44. exf6 {[%clk 0:01:52.5]} 44... Bh2+ {[%clk 0:01:56.3]} 45. Kg2
{[%clk 0:01:52.3]} 45... Rag1+ {[%clk 0:01:55.4]} 46. Kf2 {[%clk 0:01:52.7]}
46... Rf1+ {[%clk 0:01:55.6]} 47. Kg2 {[%clk 0:01:53.1]} 47... Rhg1+ {[%clk
0:01:55.9]} 48. Kxh2 {[%clk 0:01:53.3]} 48... Rg8 {[%clk 0:01:55.8]} 49. Re4
{[%clk 0:01:44]} 49... Rxf6 {[%clk 0:01:54.3]} 50. Rh4 {[%clk 0:01:42]} 50...
Rff8 {[%clk 0:01:54.2]} 51. Rh5 {[%clk 0:01:41.8]} 51... Rh8 {[%clk 0:01:53.9]}
52. Rxh8 {[%clk 0:01:42.5]} 52... Rxh8+ {[%clk 0:01:54.8]} 53. Kg3 {[%clk
0:01:43.2]} 53... Rh3+ {[%clk 0:01:54]} 54. Kxh3 {[%clk 0:01:43.4]} 54... Kc7
{[%clk 0:01:54.4]} 55. Kg3 {[%clk 0:01:43.9]} 55... Kb6 {[%clk 0:01:54.8]} 56.
Kf3 {[%clk 0:01:44.8]} 56... Kb5 {[%clk 0:01:55.2]} 57. Ke3 {[%clk 0:01:45.7]}
57... Kxb4 {[%clk 0:01:55.7]} 58. Kd2 {[%clk 0:01:46.6]} 58... Kb3 {[%clk
0:01:56.1]} 59. Kc1 {[%clk 0:01:47.5]} 59... Ka2 {[%clk 0:01:56.6]} 60. Kc2
{[%clk 0:01:47.8]} 60... b5 {[%clk 0:01:57]} 61. Kc3 {[%clk 0:01:48]} 61... a5
{[%clk 0:01:57.6]} 62. Kd4 {[%clk 0:01:48.6]} 62... b4 {[%clk 0:01:58.1]} 63.
Kc4 {[%clk 0:01:49.4]} 63... b3 {[%clk 0:01:59]} 64. Kc3 {[%clk 0:01:50.1]}
64... b2 {[%clk 0:01:59.9]} 65. Kc4 {[%clk 0:01:51]} 65... b1=Q {[%clk
0:01:59.8]} 66. Kc5 {[%clk 0:01:51.7]} 66... Qb8 {[%clk 0:01:59.7]} 67. Kc6
{[%clk 0:01:52.6]} 0-1

[Event "*** SCC Grand Prix: Titled Tuesday Blitz"]
[Site "Chess.com"]
[Date "2020.06.02"]
[Round "9"]
[White "Tenamu"]
[Black "mr65"]
[Result "1-0"]
[WhiteElo "2347"]
[BlackElo "2169"]
[TimeControl "180+1"]
[EndTime "11:45:02 PDT"]
[Termination "Tenamu won by resignation"]

1. d4 {[%clk 0:03:00.9]} 1... Nf6 {[%clk 0:02:58.1]} 2. Nc3 {[%clk 0:03:00.9]}
2... d5 {[%clk 0:02:56.1]} 3. Bf4 {[%clk 0:03:00.9]} 3... e6 {[%clk 0:02:50.3]}
4. Nb5 {[%clk 0:02:59.6]} 4... Na6 {[%clk 0:02:44.9]} 5. e3 {[%clk 0:02:59.1]}
5... c6 {[%clk 0:02:43.6]} 6. Nc3 {[%clk 0:02:57.9]} 6... Bd6 {[%clk 0:02:41.6]}
7. Qd2 {[%clk 0:02:54.8]} 7... O-O {[%clk 0:02:36.6]} 8. O-O-O {[%clk
0:02:54.7]} 8... b5 {[%clk 0:02:24.1]} 9. f3 {[%clk 0:02:51.4]} 9... Bb4 {[%clk
0:01:58.9]} 10. g4 {[%clk 0:02:49.4]} 10... Ne8 {[%clk 0:01:55.1]} 11. Bd3
{[%clk 0:02:46.4]} 11... Nd6 {[%clk 0:01:54.5]} 12. Bxd6 {[%clk 0:02:44.1]}
12... Qxd6 {[%clk 0:01:51.9]} 13. Nge2 {[%clk 0:02:43.6]} 13... c5 {[%clk
0:01:46.7]} 14. Bxb5 {[%clk 0:02:39.8]} 14... Rb8 {[%clk 0:01:33.7]} 15. Ba4
{[%clk 0:02:35.2]} 15... Bd7 {[%clk 0:01:25.4]} 16. Bxd7 {[%clk 0:02:28.7]}
16... Qxd7 {[%clk 0:01:23.8]} 17. a3 {[%clk 0:02:26.9]} 17... Ba5 {[%clk
0:01:20.8]} 18. dxc5 {[%clk 0:02:25.5]} 18... Bxc3 {[%clk 0:01:11.7]} 19. Qxc3
{[%clk 0:02:23.3]} 19... Rfc8 {[%clk 0:01:07.8]} 20. b4 {[%clk 0:02:22.7]} 20...
Nc7 {[%clk 0:00:55.8]} 21. Nd4 {[%clk 0:02:21.7]} 21... a5 {[%clk 0:00:53.3]}
22. Kd2 {[%clk 0:02:14.2]} 22... axb4 {[%clk 0:00:51.1]} 23. axb4 {[%clk
0:02:13.9]} 23... e5 {[%clk 0:00:47.7]} 24. Nf5 {[%clk 0:02:13.1]} 24... f6
{[%clk 0:00:44.7]} 25. Ke1 {[%clk 0:02:06.6]} 25... Nb5 {[%clk 0:00:43.7]} 26.
Qb3 {[%clk 0:02:03.2]} 26... g6 {[%clk 0:00:24.1]} 27. Rxd5 {[%clk 0:02:00.1]}
27... Qf7 {[%clk 0:00:20.2]} 28. Nh6+ {[%clk 0:01:59.1]} 1-0

[Event "*** SCC Grand Prix: Titled Tuesday Blitz"]
[Site "Chess.com"]
[Date "2020.06.02"]
[Round "9"]
[White "kingnb"]
[Black "superchess02"]
[Result "0-1"]
[WhiteElo "2566"]
[BlackElo "2713"]
[TimeControl "180+1"]
[EndTime "11:45:09 PDT"]
[Termination "superchess02 won by resignation"]

1. e4 {[%clk 0:03:00.9]} 1... e5 {[%clk 0:02:58.7]} 2. Nf3 {[%clk 0:03:00.3]}
2... Nc6 {[%clk 0:02:58.6]} 3. Bc4 {[%clk 0:03:01]} 3... Bc5 {[%clk 0:02:57.3]}
4. c3 {[%clk 0:03:01]} 4... Nf6 {[%clk 0:02:57.7]} 5. d4 {[%clk 0:03:01.4]} 5...
exd4 {[%clk 0:02:57.4]} 6. e5 {[%clk 0:03:02.3]} 6... d5 {[%clk 0:02:54.2]} 7.
Bb5 {[%clk 0:03:02.6]} 7... Ne4 {[%clk 0:02:54.2]} 8. cxd4 {[%clk 0:03:03.2]}
8... Bb4+ {[%clk 0:02:54.1]} 9. Bd2 {[%clk 0:03:00.4]} 9... O-O {[%clk
0:02:51.9]} 10. Bxb4 {[%clk 0:02:54.6]} 10... Nxb4 {[%clk 0:02:51.8]} 11. O-O
{[%clk 0:02:53.4]} 11... Bg4 {[%clk 0:02:46]} 12. Nc3 {[%clk 0:02:51.3]} 12...
f5 {[%clk 0:02:34.4]} 13. Rc1 {[%clk 0:02:28.6]} 13... Kh8 {[%clk 0:02:23.8]}
14. Be2 {[%clk 0:01:33.9]} 14... Nc6 {[%clk 0:02:12.6]} 15. Ne1 {[%clk
0:01:20.7]} 15... Bxe2 {[%clk 0:02:11.5]} 16. Nxe2 {[%clk 0:01:21.6]} 16... Qh4
{[%clk 0:02:11.7]} 17. Nd3 {[%clk 0:01:12.1]} 17... Nd8 {[%clk 0:02:04.1]} 18.
Rxc7 {[%clk 0:00:41.9]} 18... Ne6 {[%clk 0:02:03]} 19. Rc1 {[%clk 0:00:40.7]}
19... f4 {[%clk 0:01:56.3]} 20. f3 {[%clk 0:00:40.6]} 20... Ng3 {[%clk
0:01:56.1]} 21. hxg3 {[%clk 0:00:33.8]} 21... fxg3 {[%clk 0:01:57]} 22. Nxg3
{[%clk 0:00:34.1]} 22... Qxg3 {[%clk 0:01:57.6]} 23. Qe1 {[%clk 0:00:20.9]}
23... Qg6 {[%clk 0:01:56.2]} 24. Qf2 {[%clk 0:00:19.9]} 24... Qxd3 {[%clk
0:01:54.8]} 25. Rfd1 {[%clk 0:00:19.9]} 25... Qg6 {[%clk 0:01:54]} 26. Qd2
{[%clk 0:00:17.8]} 26... Rxf3 {[%clk 0:01:52.7]} 0-1